bitfinex/quotes_BTCUSD_20240620
["timestamp","ask_amount","ask_price","bid_price","bid_amount"]
[1718895644375,0.0095819,65066.0,65064.0,0.03294042]
[1718895644576,0.0095819,65065.0,65064.0,0.00994042]
[1718895644842,0.0095819,65065.0,65064.0,0.03294042]
[1718895644955,0.0095819,65066.0,65064.0,0.03294042]
[1718895645158,0.0095819,65065.0,65064.0,0.03294042]
[1718895645363,0.0095819,65065.0,65064.0,0.04294042]
[1718895645772,0.0095819,65066.0,65064.0,0.04994042]
[1718895645981,0.0095819,65066.0,65064.0,0.04294042]
[1718895647277,0.03121553,65067.0,65064.0,0.23474042]
[1718895647278,0.0095821,65065.0,65064.0,0.23474042]
[1718895647477,0.0095821,65065.0,65064.0,0.24274042]
[1718895647828,0.0095821,65066.0,65064.0,0.40730154]
[1718895647965,0.00086,65067.0,65066.0,0.02]
[1718895648159,0.00086,65067.0,65066.0,0.19556112]
[1718895648360,0.00086,65067.0,65066.0,0.20548609]
[1718895648778,0.01044158,65067.0,65066.0,0.20548609]
[1718895649549,0.01044158,65067.0,65066.0,0.21748609]
[1718895650512,0.01044318,65067.0,65066.0,0.21748609]
[1718895650836,0.01044318,65067.0,65066.0,0.40658609]
[1718895653601,0.01057839,65067.0,65066.0,0.40658609]
[1718895654043,0.01057839,65067.0,65066.0,0.64908609]
[1718895654256,0.01057839,65067.0,65066.0,0.77262287]
[1718895654468,0.00086,65067.0,65066.0,0.78262287]
[1718895655034,0.00086,65067.0,65066.0,0.96492287]
[1718895655236,0.00086,65067.0,65066.0,0.95992287]
[1718895655423,0.00086,65067.0,65066.0,1.05992287]
[1718895655623,0.00086,65067.0,65066.0,1.07392287]
[1718895656161,0.00086,65067.0,65066.0,1.06692287]
[1718895656380,0.00086,65076.0,65075.0,0.4707]
[1718895656768,0.00086,65076.0,65075.0,0.67536199]
[1718895657127,0.01043889,65076.0,65075.0,0.67536199]
[1718895657721,0.01043889,65076.0,65075.0,0.68436199]
[1718895658099,0.00086,65076.0,65075.0,0.69136199]
[1718895658509,0.00086,65076.0,65075.0,0.80136199]
[1718895658714,0.00086,65076.0,65075.0,0.98585999]
[1718895659138,0.00086,65076.0,65075.0,1.49519699]
[1718895659307,0.00086,65076.0,65075.0,1.80253399]
[1718895659509,0.00086,65076.0,65075.0,1.79353399]
[1718895659720,0.02936812,65097.0,65096.0,0.02]
[1718895659891,1.99301,65100.0,65097.0,0.02]
[1718895660093,0.00957719,65099.0,65098.0,0.0237]
[1718895660299,0.00957719,65099.0,65097.0,0.02]
[1718895660501,0.00957719,65099.0,65098.0,0.043]
[1718895661080,0.00957719,65099.0,65098.0,0.20523903]
[1718895661288,1.99301,65100.0,65099.0,0.02]
[1718895661498,1.99301,65100.0,65099.0,0.0526702]
[1718895661918,1.99301,65100.0,65099.0,0.0326702]
[1718895662141,2.00258659,65100.0,65099.0,0.0326702]
[1718895662578,2.00258698,65100.0,65099.0,0.023]
[1718895662780,2.00258698,65100.0,65096.0,0.02]
[1718895662781,2.00258698,65100.0,65097.0,0.043]
[1718895662992,1.99301,65100.0,65099.0,0.02]
[1718895663201,2.00258706,65100.0,65099.0,0.043]
[1718895663540,2.00258706,65100.0,65099.0,0.023]
[1718895663730,2.00258706,65100.0,65098.0,0.002]
[1718895663935,1.99301,65100.0,65098.0,0.002]
[1718895664116,1.99301,65100.0,65096.0,0.023]
[1718895664326,1.99301,65100.0,65099.0,0.001]
[1718895664942,2.00258711,65100.0,65095.0,0.023]
[1718895665149,1.99301,65100.0,65095.0,0.17556112]
[1718895666265,1.97801,65100.0,65095.0,0.17556112]
[1718895666467,1.97801,65100.0,65098.0,0.001]
[1718895667426,1.97801,65100.0,65099.0,0.19221723]
[1718895667615,1.97801,65100.0,65099.0,0.21521723]
[1718895669909,1.97801,65100.0,65099.0,0.21621723]
[1718895670289,1.97801,65100.0,65099.0,0.41731723]
[1718895670496,1.97801,65100.0,65099.0,0.40771965]
[1718895671946,1.97801,65100.0,65099.0,0.18661965]
[1718895672227,1.97801,65100.0,65099.0,0.01105853]
[1718895672414,1.97801,65100.0,65099.0,0.001]
[1718895673575,1.97801,65100.0,65099.0,0.34536112]
[1718895673765,1.97801,65100.0,65099.0,0.40189723]
[1718895673968,1.97801,65100.0,65099.0,0.43495576]
[1718895674163,1.97801,65100.0,65099.0,0.22315576]
[1718895674604,1.97801,65100.0,65099.0,0.21309723]
[1718895674808,1.97801,65100.0,65099.0,0.23309723]
[1718895675351,2.31351,65100.0,65099.0,0.001]
[1718895675551,2.49316942,65100.0,65099.0,0.001]
[1718895677433,0.2567,65099.0,65082.0,0.02]
[1718895677597,0.2567,65099.0,65081.0,0.1989]
[1718895677598,0.2567,65098.0,65083.0,0.15256112]
[1718895677799,0.2567,65098.0,65084.0,0.023]
[1718895677800,0.00957912,65097.0,65084.0,0.023]
[1718895677999,0.00957912,65097.0,65085.0,0.15256112]
[1718895678332,0.00957912,65097.0,65086.0,0.023]
[1718895678457,0.00957912,65097.0,65086.0,0.17556112]
[1718895679504,0.0845,65095.0,65086.0,0.024]
[1718895679705,0.26027912,65094.0,65086.0,0.001]
[1718895680049,0.001,65097.0,65087.0,0.35066112]
[1718895680050,0.00957912,65093.0,65087.0,0.35066112]
[1718895680259,0.001,65097.0,65096.0,0.02]
[1718895680484,0.001,65097.0,65096.0,0.39366112]
[1718895680686,0.001,65097.0,65096.0,0.37366112]
[1718895680854,0.001,65097.0,65096.0,0.38222847]
[1718895681058,0.01057705,65097.0,65096.0,0.38222847]
[1718895681688,0.00957705,65097.0,65096.0,0.38222847]
[1718895681886,1.97801,65100.0,65096.0,0.38222847]
[1718895681887,0.00957705,65099.0,65096.0,0.38222847]
[1718895682086,0.00957705,65099.0,65097.0,0.17556112]
[1718895682637,0.00957705,65099.0,65098.0,0.00855191]
[1718895682821,0.00957705,65099.0,65098.0,0.18411303]
[1718895683012,0.00957705,65099.0,65098.0,0.20411303]
[1718895683213,0.00957705,65099.0,65098.0,0.18411303]
[1718895683426,1.97801,65100.0,65098.0,0.18411303]
[1718895683627,1.97801,65100.0,65099.0,0.17556112]
[1718895683846,1.98758695,65100.0,65099.0,0.18410532]
[1718895685239,1.98758695,65100.0,65099.0,0.20510532]
[1718895685659,1.98858695,65100.0,65099.0,0.20510532]
[1718895686010,1.98858695,65100.0,65099.0,0.17656112]
[1718895686419,1.97901,65100.0,65099.0,0.18510532]
[1718895686839,1.97901,65100.0,65099.0,0.20510532]
[1718895687039,1.98858673,65100.0,65099.0,0.18510532]
[1718895687666,1.98858673,65100.0,65099.0,0.17656112]
[1718895688226,1.73501057,65100.0,65099.0,0.18510532]
[1718895688434,1.72543384,65100.0,65099.0,0.18748257]
[1718895688641,1.73501087,65100.0,65099.0,0.25351083]
[1718895689260,1.73501087,65100.0,65099.0,0.27351083]
[1718895690278,1.73501087,65100.0,65099.0,0.46181083]
[1718895691550,1.72543384,65100.0,65099.0,0.46081083]
[1718895691769,1.73500952,65100.0,65099.0,0.46081083]
[1718895691975,1.73500952,65100.0,65099.0,0.39578257]
[1718895692394,1.73500952,65100.0,65099.0,0.39478257]
[1718895692590,1.73400952,65100.0,65099.0,0.39478257]
[1718895692723,1.73400952,65100.0,65099.0,0.40578257]
[1718895693140,1.73500952,65100.0,65099.0,0.40578257]
[1718895693542,1.73400952,65100.0,65099.0,0.40578257]
[1718895693981,1.73400952,65100.0,65099.0,0.20648257]
[1718895694563,1.73401103,65100.0,65099.0,0.20648257]
[1718895697352,1.82594747,65100.0,65099.0,0.20648257]
[1718895697578,1.72443384,65100.0,65099.0,0.20648257]
[1718895697782,1.72443384,65100.0,65099.0,0.19556112]
[1718895697783,1.73441327,65100.0,65099.0,0.19556112]
[1718895697993,1.78040192,65100.0,65099.0,0.19556112]
[1718895698187,1.73441327,65100.0,65099.0,0.19556112]
[1718895698390,1.75835572,65100.0,65099.0,0.21556112]
[1718895698589,1.75835572,65100.0,65099.0,0.19556112]
[1718895699031,1.80436756,65100.0,65099.0,0.19556112]
[1718895699240,1.82734844,65100.0,65099.0,0.19556112]
[1718895700001,1.82734844,65100.0,65099.0,0.21556112]
[1718895700300,1.75835572,65100.0,65099.0,0.21556112]
[1718895700703,1.76016558,65100.0,65099.0,0.21556112]
[1718895701339,1.85227742,65100.0,65099.0,0.21556112]
[1718895701526,1.76016558,65100.0,65099.0,0.21556112]
[1718895701944,1.85227742,65100.0,65099.0,0.21556112]
[1718895702330,1.82926938,65100.0,65099.0,0.42346112]
[1718895702528,1.82926938,65100.0,65099.0,0.67996112]
[1718895702529,1.76016558,65100.0,65099.0,0.67996112]
[1718895702728,1.76016558,65100.0,65099.0,0.69088257]
[1718895703714,1.76002096,65100.0,65099.0,0.69088257]
[1718895704131,1.76002096,65100.0,65099.0,0.77920083]
[1718895705676,1.76002096,65100.0,65099.0,0.69088257]
[1718895705890,1.7570822,65100.0,65099.0,0.69088257]
[1718895706303,1.7551531,65100.0,65099.0,0.69088257]
[1718895706805,1.75616258,65100.0,65099.0,0.69088257]
[1718895707211,1.75616258,65100.0,65099.0,0.67996112]
[1718895707419,1.75616258,65100.0,65099.0,0.76718723]
[1718895707641,1.75616258,65100.0,65099.0,0.77810868]
[1718895708270,1.82526326,65100.0,65099.0,0.77810868]
[1718895708479,1.75616258,65100.0,65099.0,0.77810868]
[1718895708679,1.75616258,65100.0,65099.0,0.76718723]
[1718895708892,1.75616258,65100.0,65099.0,0.77810868]
[1718895709098,1.80222693,65100.0,65099.0,0.77810868]
[1718895709304,1.75616258,65100.0,65099.0,0.67996112]
[1718895709753,1.75610505,65100.0,65099.0,0.69088257]
[1718895710177,1.74110505,65100.0,65099.0,0.69088257]
[1718895710399,1.74110505,65100.0,65099.0,0.22648257]
[1718895710615,1.81020573,65100.0,65099.0,0.22648257]
[1718895710824,1.78954817,65100.0,65099.0,0.20648257]
[1718895711037,1.78954817,65100.0,65099.0,0.19556112]
[1718895711038,1.81020025,65100.0,65099.0,0.19556112]
[1718895711258,1.90471415,65100.0,65099.0,0.20648257]
[1718895711480,1.8807717,65100.0,65099.0,0.20648257]
[1718895711694,1.8807717,65100.0,65099.0,0.19556112]
[1718895712346,1.8807717,65100.0,65099.0,0.043]
[1718895712840,1.87752961,65100.0,65099.0,0.043]
[1718895713259,2.12342961,65100.0,65099.0,0.043]
[1718895713892,2.00826629,65100.0,65099.0,0.043]
[1718895715580,1.75826629,65100.0,65099.0,0.043]
[1718895715789,1.8260457,65100.0,65099.0,0.043]
[1718895716201,1.75728448,65100.0,65099.0,0.043]
[1718895716431,1.82604527,65100.0,65099.0,0.043]
[1718895716642,1.87244859,65100.0,65099.0,0.043]
[1718895718634,1.87197359,65100.0,65099.0,0.043]
[1718895718836,1.57943322,65100.0,65099.0,0.2657]
[1718895719040,1.46426943,65100.0,65099.0,0.32921145]
[1718895719273,1.5333619,65100.0,65099.0,0.32921145]
[1718895719485,1.5611316,65100.0,65099.0,0.2657]
[1718895719705,1.49203913,65100.0,65099.0,0.2657]
[1718895720471,1.58416738,65100.0,65099.0,0.2457]
[1718895720636,1.58416738,65100.0,65099.0,0.2657]
[1718895721007,1.49203913,65100.0,65099.0,0.2657]
[1718895721212,1.58416738,65100.0,65099.0,0.2657]
[1718895721903,1.49501061,65100.0,65099.0,0.2657]
[1718895722341,1.58713886,65100.0,65099.0,0.2657]
[1718895722538,1.49501061,65100.0,65099.0,0.2657]
[1718895722741,1.49501061,65100.0,65099.0,0.31829]
[1718895722951,1.49501061,65100.0,65099.0,0.2657]
[1718895723350,1.58713886,65100.0,65099.0,0.2657]
[1718895723753,1.6101744,65100.0,65099.0,0.2657]
[1718895724181,1.49501061,65100.0,65099.0,0.2657]
[1718895724379,1.6101744,65100.0,65099.0,0.2657]
[1718895724738,1.49545071,65100.0,65099.0,0.2457]
[1718895724982,1.6106835,65100.0,65099.0,0.2657]
[1718895725387,1.49545071,65100.0,65099.0,0.2457]
[1718895725796,1.49545071,65100.0,65099.0,0.2657]
[1718895726017,1.49545071,65100.0,65099.0,0.47085112]
[1718895726223,1.49545071,65100.0,65099.0,0.48177257]
[1718895726457,1.61072294,65100.0,65099.0,0.48177257]
[1718895727692,1.49545071,65100.0,65099.0,0.42918257]
[1718895727909,1.49580648,65100.0,65099.0,0.42918257]
[1718895729853,1.61108954,65100.0,65099.0,0.42918257]
[1718895730051,1.73780648,65100.0,65099.0,0.03092145]
[1718895730256,1.73780648,65100.0,65099.0,0.02]
[1718895730257,1.78756879,65100.0,65099.0,0.02]
[1718895730637,1.78721416,65100.0,65099.0,0.02]
[1718895730848,1.92556859,65100.0,65099.0,0.02]
[1718895731261,1.78721416,65100.0,65099.0,0.02]
[1718895731891,2.16482273,65100.0,65099.0,0.02]
[1718895732115,2.0264683,65100.0,65099.0,0.02]
[1718895732339,2.18211703,65100.0,65099.0,0.02]
[1718895732552,2.0264683,65100.0,65099.0,0.02]
[1718895732751,2.02954716,65100.0,65099.0,0.02]
[1718895732984,1.87391416,65100.0,65099.0,0.011]
[1718895733178,1.87391416,65100.0,65099.0,0.012]
[1718895733429,1.84614446,65100.0,65099.0,0.012]
[1718895733730,1.99738532,65100.0,65099.0,0.011]
[1718895733932,1.99433753,65100.0,65099.0,0.011946]
[1718895734117,2.34789865,65100.0,65099.0,0.012946]
[1718895734348,2.65820492,65100.0,65099.0,0.002467]
[1718895734556,2.85720492,65100.0,65099.0,0.001467]
[1718895734759,2.85820492,65100.0,65099.0,0.001946]
[1718895736206,2.85820492,65100.0,65099.0,0.004946]
[1718895736409,2.85720492,65100.0,65099.0,0.003946]
[1718895736541,2.88459378,65100.0,65099.0,0.003946]
[1718895736758,2.89559378,65100.0,65099.0,0.001946]
[1718895737476,2.89559378,65100.0,65099.0,0.002946]
[1718895737477,2.90659378,65100.0,65099.0,0.002946]
[1718895738388,2.90659378,65100.0,65065.0,0.10709172]
[1718895738389,0.3446,65085.0,65070.0,0.1903]
[1718895738714,0.09206365,65072.0,65067.0,0.1903]
[1718895738915,0.0690502,65068.0,65067.0,0.1903]
[1718895739259,0.08037983,65068.0,65067.0,0.1903]
[1718895739536,0.01132963,65068.0,65067.0,0.1903]
[1718895739743,0.03317481,65068.0,65062.0,0.205546]
[1718895740001,0.0867,65075.0,65062.0,0.000946]
[1718895740002,0.06901678,65063.0,65062.0,0.000946]
[1718895740211,0.01132963,65063.0,65062.0,0.000946]
[1718895740623,0.0802984,65063.0,65062.0,0.000946]
[1718895741235,0.01132963,65063.0,65062.0,0.002946]
[1718895741445,0.01132963,65063.0,65062.0,0.000946]
[1718895741865,0.01232963,65063.0,65062.0,0.000946]
[1718895742286,0.05827842,65063.0,65062.0,0.000946]
[1718895742494,0.04859056,65063.0,65062.0,0.000946]
[1718895742696,0.05871234,65063.0,65062.0,0.000946]
[1718895744378,0.05971234,65063.0,65062.0,0.003946]
[1718895744590,0.01212178,65063.0,65062.0,0.003946]
[1718895745417,0.01212178,65063.0,65062.0,0.219146]
[1718895745615,0.01239807,65063.0,65062.0,0.242146]
[1718895745817,0.01239807,65063.0,65062.0,0.25349595]
[1718895746165,0.002,65063.0,65062.0,0.25349595]
[1718895746574,0.002,65063.0,65062.0,0.23349595]
[1718895746930,0.002,65063.0,65062.0,0.25349595]
[1718895747155,0.002,65063.0,65062.0,0.66515707]
[1718895748264,0.002,65063.0,65062.0,0.23349595]
[1718895748454,0.002,65063.0,65062.0,0.01151263]
[1718895748661,0.01282688,65063.0,65062.0,0.01529594]
[1718895748859,0.02364589,65063.0,65062.0,0.01529594]
[1718895749464,0.36484589,65063.0,65062.0,0.01529594]
[1718895749674,0.40133048,65063.0,65062.0,0.003946]
[1718895750683,0.40033048,65063.0,65062.0,0.003946]
[1718895751033,0.40033048,65063.0,65062.0,0.000946]
[1718895751231,0.39933048,65063.0,65062.0,0.000946]
[1718895751432,0.399251,65063.0,65062.0,0.000946]
[1718895751639,0.408251,65063.0,65062.0,0.000946]
[1718895751894,0.399251,65063.0,65062.0,0.000946]
[1718895752384,0.56581212,65063.0,65062.0,0.000946]
[1718895752581,0.56381212,65063.0,65062.0,0.000946]
[1718895752879,0.55181212,65063.0,65062.0,0.00087069]
[1718895753519,0.54098524,65063.0,65062.0,0.00087069]
[1718895754014,0.91726696,65063.0,65062.0,0.00087069]
[1718895754158,0.2,65055.0,65037.0,0.1934]
[1718895754362,0.2552,65051.0,65037.0,0.1934]
[1718895754565,0.2552,65051.0,65038.0,0.00775211]
[1718895754785,0.01021432,65050.0,65037.0,0.1934]
[1718895754972,0.01021432,65050.0,65033.0,0.251571]
[1718895754973,0.2552,65049.0,65033.0,0.202871]
[1718895755175,0.07628172,65047.0,65033.0,0.009471]
[1718895755380,0.69387544,65048.0,65033.0,0.009471]
[1718895755381,0.2444,65045.0,65034.0,0.00778303]
[1718895755742,0.07960186,65044.0,65033.0,0.009471]
[1718895755950,0.01021432,65043.0,65033.0,0.009471]
[1718895756346,0.21021432,65043.0,65033.0,0.009471]
[1718895756590,0.01021432,65042.0,65033.0,0.009471]
[1718895756788,0.07787062,65041.0,65033.0,0.009471]
[1718895756937,0.01021432,65040.0,65033.0,0.009471]
[1718895757140,0.0676563,65041.0,65033.0,0.009471]
[1718895757342,0.01038344,65040.0,65033.0,0.009471]
[1718895757545,0.01474273,65039.0,65033.0,0.009471]
[1718895758739,0.3361,65038.0,65033.0,0.009471]
[1718895760283,0.23066112,65037.0,65033.0,0.009471]
[1718895760609,0.2,65035.0,65033.0,0.009471]
[1718895760794,0.32212974,65034.0,65033.0,0.009471]
[1718895761230,0.31254039,65034.0,65033.0,0.009471]
[1718895762094,0.32220278,65034.0,65033.0,0.009471]
[1718895762263,0.31354039,65034.0,65033.0,0.009471]
[1718895762463,0.04074582,65034.0,65033.0,0.009471]
[1718895762935,0.05040947,65034.0,65033.0,0.008475]
[1718895763299,0.25040947,65034.0,65033.0,0.008475]
[1718895763500,0.40297059,65034.0,65033.0,0.008475]
[1718895763698,0.4028963,65034.0,65033.0,0.008475]
[1718895764719,0.4018963,65034.0,65033.0,0.008475]
[1718895764897,0.37615048,65034.0,65033.0,0.008475]
[1718895765265,0.36215048,65034.0,65033.0,0.008475]
[1718895765493,0.69815057,65034.0,65033.0,0.008475]
[1718895765645,0.71156112,65034.0,65033.0,0.008475]
[1718895765853,0.81652398,65034.0,65033.0,0.008475]
[1718895766060,0.79352398,65034.0,65033.0,0.008475]
[1718895766460,0.90752398,65034.0,65033.0,0.008475]
[1718895766840,0.99352412,65034.0,65033.0,0.008475]
[1718895767261,0.2,65031.0,65030.0,0.000946]
[1718895767484,0.61086112,65031.0,65030.0,0.000946]
[1718895768747,0.62386112,65031.0,65030.0,0.000946]
[1718895769156,0.41086112,65031.0,65030.0,0.000946]
[1718895769278,0.42186112,65031.0,65030.0,0.00875996]
[1718895769891,0.44145049,65031.0,65030.0,0.00875996]
[1718895770102,0.7370258,65031.0,65030.0,0.000946]
[1718895770511,0.72654281,65031.0,65030.0,0.000946]
[1718895770715,0.2,65028.0,65021.0,0.009471]
[1718895770914,0.08370281,65027.0,65021.0,0.009471]
[1718895771123,0.2781,65026.0,65021.0,0.009471]
[1718895771958,0.0781,65026.0,65021.0,0.009471]
[1718895772822,0.0831,65026.0,65021.0,0.009471]
[1718895773093,0.3823,65024.0,65021.0,0.009471]
[1718895773321,0.07016639,65023.0,65021.0,0.009471]
[1718895773679,0.1823,65024.0,65021.0,0.009471]
[1718895774103,0.0831,65026.0,65021.0,0.009471]
[1718895774310,0.0781,65026.0,65021.0,0.009471]
[1718895774728,0.001,65023.0,65021.0,0.009471]
[1718895774941,0.0781,65026.0,65021.0,0.009471]
[1718895775332,0.0831,65026.0,65021.0,0.009471]
[1718895775534,0.001,65024.0,65021.0,0.009471]
[1718895775914,0.05153639,65023.0,65021.0,0.009471]
[1718895776135,0.05253639,65023.0,65021.0,0.009471]
[1718895776463,0.001,65023.0,65021.0,0.009471]
[1718895777510,0.2781,65026.0,65021.0,0.009471]
[1718895777511,0.0781,65026.0,65021.0,0.009471]
[1718895777831,0.002,65024.0,65021.0,0.009471]
[1718895778251,0.0781,65026.0,65021.0,0.009471]
[1718895778436,0.001,65023.0,65021.0,0.009471]
[1718895778882,0.06143639,65025.0,65021.0,0.009471]
[1718895778883,0.26143639,65025.0,65021.0,0.009471]
[1718895779058,0.012,65024.0,65021.0,0.009471]
[1718895779464,0.06143639,65025.0,65021.0,0.009471]
[1718895779644,0.00959017,65024.0,65021.0,0.009471]
[1718895779843,0.009,65023.0,65021.0,0.009471]
[1718895780281,0.23626393,65027.0,65021.0,0.009471]
[1718895780498,0.10572428,65026.0,65021.0,0.009471]
[1718895780858,0.22159014,65025.0,65021.0,0.009471]
[1718895781062,0.01,65023.0,65021.0,0.009471]
[1718895781251,0.00959014,65022.0,65021.0,0.009471]
[1718895782018,0.02412818,65022.0,65021.0,0.009471]
[1718895782291,0.9402208,65022.0,65021.0,0.009471]
[1718895782454,0.89077944,65022.0,65021.0,0.009471]
[1718895782653,0.89078065,65022.0,65021.0,0.009471]
[1718895784235,0.71648065,65022.0,65021.0,0.009471]
[1718895785041,0.72548065,65022.0,65021.0,0.009471]
[1718895785341,0.04171953,65022.0,65021.0,0.200971]
[1718895785555,0.04171868,65022.0,65021.0,0.20885457]
[1718895785766,0.05071868,65022.0,65021.0,0.20885457]
[1718895785998,0.05071868,65022.0,65021.0,0.21145457]
[1718895786414,0.06579055,65022.0,65021.0,0.21145457]
[1718895786844,0.05071868,65022.0,65021.0,0.21145457]
[1718895787229,0.05071868,65022.0,65021.0,0.203571]
[1718895787615,0.05071868,65022.0,65021.0,0.21145457]
[1718895788127,0.05071868,65022.0,65021.0,0.01735457]
[1718895788336,0.6584798,65022.0,65021.0,0.009471]
[1718895788567,0.76989322,65022.0,65021.0,0.009471]
[1718895789178,0.38759322,65022.0,65021.0,0.009471]
[1718895789431,0.58759322,65022.0,65021.0,0.009471]
[1718895790933,0.54137489,65022.0,65021.0,0.009471]
[1718895791144,0.54137489,65022.0,65011.0,0.242071]
[1718895791145,0.2,65014.0,65011.0,0.009471]
[1718895791359,0.01088594,65013.0,65011.0,0.009471]
[1718895791579,0.01088594,65012.0,65011.0,0.009471]
[1718895791963,0.03526453,65012.0,65011.0,0.009471]
[1718895792170,0.01088594,65012.0,65011.0,0.009471]
[1718895792615,0.01088594,65020.0,65011.0,0.011471]
[1718895792822,0.01088594,65019.0,65011.0,0.011471]
[1718895793026,0.01088594,65019.0,65011.0,0.009471]
[1718895793233,0.01088594,65019.0,65012.0,0.4504]
[1718895793508,0.01088594,65018.0,65015.0,0.2495]
[1718895793717,0.05880985,65022.0,65016.0,0.2009]
[1718895793718,0.01088594,65017.0,65016.0,0.2009]
[1718895793930,0.05880985,65022.0,65016.0,0.2009]
[1718895793931,0.01088594,65021.0,65016.0,0.2009]
[1718895794143,0.014,65020.0,65016.0,0.2009]
[1718895794357,0.03429086,65020.0,65016.0,0.2009]
[1718895794565,0.0121517,65019.0,65016.0,0.2009]
[1718895794774,0.0121517,65019.0,65017.0,0.2393]
[1718895795014,0.0121517,65019.0,65018.0,0.2359]
[1718895795235,0.21030627,65037.0,65018.0,0.2359]
[1718895795236,0.25841181,65043.0,65028.0,0.1929]
[1718895795465,0.14592752,65044.0,65035.0,0.4322]
[1718895795466,0.21030627,65044.0,65035.0,0.4322]
[1718895795680,0.1,65043.0,65035.0,0.4322]
[1718895795851,0.1,65048.0,65035.0,0.4522]
[1718895796414,0.014,65041.0,65035.0,0.4322]
[1718895796618,0.014,65041.0,65035.0,0.4522]
[1718895796823,0.04592752,65049.0,65036.0,0.34546112]
[1718895797030,0.2,65047.0,65036.0,0.1929]
[1718895797399,0.2,65041.0,65031.0,0.1929]
[1718895797612,0.04598314,65038.0,65031.0,0.1929]
[1718895798032,0.04598314,65039.0,65031.0,0.1929]
[1718895798233,0.04598314,65039.0,65032.0,0.02]
[1718895798435,0.06757556,65039.0,65031.0,0.1929]
[1718895798615,0.04598314,65038.0,65031.0,0.1929]
[1718895799007,0.04598314,65040.0,65032.0,0.02]
[1718895799309,0.007,65038.0,65032.0,0.02]
[1718895799537,0.007,65038.0,65033.0,0.00779077]
[1718895800396,0.04604687,65040.0,65033.0,0.00779077]
[1718895800397,0.04604687,65039.0,65033.0,0.00779077]
[1718895801188,0.04604687,65039.0,65031.0,0.2129]
[1718895801401,0.04604687,65039.0,65034.0,0.00778303]
[1718895801527,0.04604687,65038.0,65032.0,0.02]
[1718895801726,0.21883739,65046.0,65035.0,0.0077753]
[1718895801929,0.005,65039.0,65035.0,0.02]
[1718895802143,0.003,65038.0,65036.0,0.25366757]
[1718895802554,0.005,65039.0,65036.0,0.27366757]
[1718895802795,0.005,65039.0,65038.0,0.02]
[1718895803158,0.005,65039.0,65038.0,0.46405211]
[1718895803527,0.005,65039.0,65038.0,0.48705211]
[1718895803639,0.0241233,65055.0,65046.0,0.4382]
[1718895803851,0.0241233,65055.0,65046.0,0.44589027]
[1718895804858,0.0241233,65055.0,65046.0,0.45589027]
[1718895805088,0.00977693,65054.0,65046.0,0.43589027]
[1718895805477,3.52110973,65038.0,65034.0,0.02]
[1718895805680,3.52110973,65038.0,65036.0,0.09628172]
[1718895805902,3.52110973,65038.0,65037.0,0.17256112]
[1718895806076,3.52110973,65038.0,65037.0,0.21025049]
[1718895806624,3.52110973,65038.0,65037.0,0.15256112]
[1718895806841,3.53206843,65038.0,65030.0,0.02]
[1718895806982,0.0109587,65037.0,65031.0,0.15256112]
[1718895808987,0.00958733,65035.0,65034.0,0.002]
[1718895809316,0.00958733,65035.0,65031.0,0.002]
[1718895809523,0.00958733,65036.0,65031.0,0.002]
[1718895809728,0.00958733,65035.0,65031.0,0.002]
[1718895809929,0.00958733,65034.0,65031.0,0.002]
[1718895810213,0.00958733,65033.0,65031.0,0.002]
[1718895810408,0.18210402,65037.0,65031.0,0.002]
[1718895810409,0.00958733,65032.0,65031.0,0.002]
[1718895810839,0.00958733,65032.0,65026.0,0.15256112]
[1718895811171,0.00958733,65031.0,65026.0,0.15256112]
[1718895811362,0.00958733,65030.0,65026.0,0.15256112]
[1718895811575,0.001,65036.0,65026.0,0.15256112]
[1718895811576,0.00958733,65029.0,65026.0,0.15256112]
[1718895811703,0.00958733,65028.0,65026.0,0.15256112]
[1718895811909,0.06996348,65036.0,65025.0,0.4372]
[1718895811910,0.02,65034.0,65025.0,0.4372]
[1718895812137,0.06896348,65030.0,65025.0,0.1997]
[1718895812339,0.00958778,65029.0,65025.0,0.1997]
[1718895813824,0.00958778,65029.0,65025.0,0.2047]
[1718895814118,0.001,65028.0,65026.0,0.005]
[1718895814315,0.00958778,65027.0,65026.0,0.005]
[1718895814653,0.02673839,65027.0,65026.0,0.005]
[1718895814915,0.02673937,65027.0,65025.0,0.005]
[1718895815108,0.00958876,65026.0,65025.0,0.005]
[1718895815328,0.00958876,65026.0,65025.0,0.01]
[1718895815497,0.01915904,65026.0,65025.0,0.005]
[1718895815701,0.15410813,65026.0,65025.0,0.011]
[1718895815904,0.01915904,65026.0,65025.0,0.011]
[1718895816085,0.01915904,65026.0,65025.0,0.005]
[1718895816513,0.02315904,65026.0,65025.0,0.005]
[1718895816716,0.02315904,65026.0,65015.0,0.1875]
[1718895816717,0.01915904,65026.0,65015.0,0.1875]
[1718895816962,0.068976,65023.0,65015.0,0.1875]
[1718895817181,0.00958876,65022.0,65015.0,0.1875]
[1718895817814,0.02303898,65025.0,65015.0,0.1875]
[1718895818015,0.06897654,65023.0,65015.0,0.1885]
[1718895818339,0.00958963,65022.0,65015.0,0.1875]
[1718895818767,0.01258963,65022.0,65015.0,0.1875]
[1718895818976,0.00958963,65021.0,65015.0,0.1875]
[1718895819169,0.00958964,65020.0,65015.0,0.1875]
[1718895819343,0.003,65022.0,65015.0,0.1875]
[1718895819344,0.00958964,65019.0,65015.0,0.1875]
[1718895819541,0.00958964,65021.0,65015.0,0.1875]
[1718895819753,0.00958964,65020.0,65015.0,0.1875]
[1718895819964,0.00958964,65019.0,65015.0,0.1875]
[1718895820174,0.00958964,65018.0,65015.0,0.1875]
[1718895820373,0.00958964,65017.0,65015.0,0.1885]
[1718895820642,0.00958964,65016.0,65015.0,0.1885]
[1718895821061,0.00958997,65016.0,65015.0,0.1885]
[1718895821464,0.00958997,65018.0,65015.0,0.1885]
[1718895821684,0.04074801,65017.0,65015.0,0.1885]
[1718895821877,0.00958997,65016.0,65015.0,0.1875]
[1718895822170,0.01058997,65016.0,65015.0,0.1925]
[1718895822582,0.01058997,65016.0,65015.0,0.1955]
[1718895823020,0.01058997,65016.0,65015.0,0.1925]
[1718895823180,0.01158997,65016.0,65015.0,0.1985]
[1718895824003,0.01158987,65016.0,65015.0,0.1985]
[1718895824863,0.01158987,65016.0,65015.0,0.011]